{"text_format":"1","workbook":"xlsx","n_sheets":9,"sheets":["1","2","3","4","5","6A","6B","6C","6D"],"not_rendered":{"charts":0,"images":0,"macros":0,"external_links":0,"defined_names":10,"comments":0,"pivot_tables":0},"unopened":[],"bounds":{"document_bytes":16777216,"sheet_cells":100000,"rows_first":2000,"rows_last":500,"rows_between":2000,"halvings":0,"cell_chars":16384,"cell_head_chars":4096},"cells_cut":0,"cells_raw":0,"read":"whole","date_system":"1900"}

{"sheet":"1","index":0,"n_rows":80,"n_cols":7,"rows_kept":80,"cut":false,"hidden":false,"merged":[[0,0,0,6],[1,0,1,6],[2,0,2,6],[3,0,3,6]]}
["CONSEJO ESTATAL DE POBLACION"]
["Estado de Situación Financiera Detallado - LDF"]
["Del 31 de Diciembre de 2016 y al 30 de septiembre 2017"]
["(PESOS)"]
["Concepto (c)",2017,"31 de diciembre de 2016",null,"Concepto (c)",2017,"31 de diciembre de 2016"]
["ACTIVO",null,null,null,"PASIVO"]
["Activo Circulante",null,null,null,"Pasivo Circulante"]
["a. Efectivo y Equivalentes (a=a1+a2+a3+a4+a5+a6+a7)",394890,77253,null,"a. Cuentas por Pagar a Corto Plazo (a=a1+a2+a3+a4+a5+a6+a7+a8+a9)",14968,13875]
["a1) Efectivo",0,0,null,"a1) Servicios Personales por Pagar a Corto Plazo",0,-1]
["a2) Bancos/Tesorería",394890,77253,null,"a2) Proveedores por Pagar a Corto Plazo",0,0]
["a3) Bancos/Dependencias y Otros",null,0,null,"a3) Contratistas por Obras Públicas por Pagar a Corto Plazo",0,0]
["a4) Inversiones Temporales (Hasta 3 meses)",0,0,null,"a4) Participaciones y Aportaciones por Pagar a Corto Plazo",0,0]
["a5) Fondos con Afectación Específica",0,0,null,"a5) Transferencias Otorgadas por Pagar a Corto Plazo",0,0]
["a6) Depósitos de Fondos de Terceros en Garantía y/o Administración",0,0,null,"a6) Intereses, Comisiones y Otros Gastos de la Deuda Pública por Pagar a Corto Plazo",0,0]
["a7) Otros Efectivos y Equivalentes",0,0,null,"a7) Retenciones y Contribuciones por Pagar a Corto Plazo",14968,25756]
["b. Derechos a Recibir Efectivo o Equivalentes (b=b1+b2+b3+b4+b5+b6+b7)",56650,17956,null,"a8) Devoluciones de la Ley de Ingresos por Pagar a Corto Plazo",0,0]
["b1) Inversiones Financieras de Corto Plazo",0,0,null,"a9) Otras Cuentas por Pagar a Corto Plazo",0,0]
["b2) Cuentas por Cobrar a Corto Plazo",0,0,null,"b. Documentos por Pagar a Corto Plazo (b=b1+b2+b3)",{"$f":"+F19+F20+F21","v":0},{"$f":"+G19+G20+G21","v":0}]
["b3) Deudores Diversos por Cobrar a Corto Plazo",56650,17956,null,"b1) Documentos Comerciales por Pagar a Corto Plazo",0,0]
["b4) Ingresos por Recuperar a Corto Plazo",0,0,null,"b2) Documentos con Contratistas por Obras Públicas por Pagar a Corto Plazo",0,0]
["b5) Deudores por Anticipos de la Tesorería a Corto Plazo",0,0,null,"b3) Otros Documentos por Pagar a Corto Plazo",0,0]
["b6) Préstamos Otorgados a Corto Plazo",0,0,null,"c. Porción a Corto Plazo de la Deuda Pública a Largo Plazo (c=c1+c2)",{"$f":"+F23+F24","v":0},{"$f":"+G23+G24","v":0}]
["b7) Otros Derechos a Recibir Efectivo o Equivalentes a Corto Plazo",0,0,null,"c1) Porción a Corto Plazo de la Deuda Pública",0,0]
["c. Derechos a Recibir Bienes o Servicios (c=c1+c2+c3+c4+c5)",{"$f":"+B25+B26+B27+B28+B29","v":0},0,null,"c2) Porción a Corto Plazo de Arrendamiento Financiero",0,0]
["c1) Anticipo a Proveedores por Adquisición de Bienes y Prestación de Servicios a Corto Plazo",0,0,null,"d. Títulos y Valores a Corto Plazo",0,0]
["c2) Anticipo a Proveedores por Adquisición de Bienes Inmuebles y Muebles a Corto Plazo",0,0,null,"e. Pasivos Diferidos a Corto Plazo (e=e1+e2+e3)",{"$f":"+F27+F28+F29","v":0},{"$f":"+G27+G28+G29","v":0}]
["c3) Anticipo a Proveedores por Adquisición de Bienes Intangibles a Corto Plazo",0,0,null,"e1) Ingresos Cobrados por Adelantado a Corto Plazo",0,0]
["c4) Anticipo a Contratistas por Obras Públicas a Corto Plazo",0,0,null,"e2) Intereses Cobrados por Adelantado a Corto Plazo",0,0]
["c5) Otros Derechos a Recibir Bienes o Servicios a Corto Plazo",0,0,null,"e3) Otros Pasivos Diferidos a Corto Plazo",0,0]
["d. Inventarios (d=d1+d2+d3+d4+d5)",{"$f":"+B31+B32+B33+B34+B35","v":0},{"$f":"+C31+C32+C33+C34+C35","v":0},null,"f. Fondos y Bienes de Terceros en Garantía y/o Administración a Corto Plazo (f=f1+f2+f3+f4+f5+f6)",{"$f":"+F31+F32+F33+F34+F35+F36","v":0},{"$f":"+G31+G32+G33+G34+G35+G36","v":0}]
["d1) Inventario de Mercancías para Venta",0,0,null,"f1) Fondos en Garantía a Corto Plazo",0,0]
["d2) Inventario de Mercancías Terminadas",0,0,null,"f2) Fondos en Administración a Corto Plazo",0,0]
["d3) Inventario de Mercancías en Proceso de Elaboración",0,0,null,"f3) Fondos Contingentes a Corto Plazo",0,0]
["d4) Inventario de Materias Primas, Materiales y Suministros para Producción",0,0,null,"f4) Fondos de Fideicomisos, Mandatos y Contratos Análogos a Corto Plazo",0,0]
["d5) Bienes en Tránsito",0,0,null,"f5) Otros Fondos de Terceros en Garantía y/o Administración a Corto Plazo",0,0]
["e. Almacenes",0,0,null,"f6) Valores y Bienes en Garantía a Corto Plazo",0,0]
["f. Estimación por Pérdida o Deterioro de Activos Circulantes (f=f1+f2)",{"$f":"+B38+B39","v":0},{"$f":"+C38+C39","v":0},null,"g. Provisiones a Corto Plazo (g=g1+g2+g3)",{"$f":"+F38+F39+F40","v":0},{"$f":"+G38+G39+G40","v":0}]
["f1) Estimaciones para Cuentas Incobrables por Derechos a Recibir Efectivo o Equivalentes",0,0,null,"g1) Provisión para Demandas y Juicios a Corto Plazo",0,0]
["f2) Estimación por Deterioro de Inventarios",0,0,null,"g2) Provisión para Contingencias a Corto Plazo",0,0]
["g. Otros Activos Circulantes (g=g1+g2+g3+g4)",{"$f":"+B41+B42+B43+B44","v":0},{"$f":"+C41+C42+C43+C44","v":0},null,"g3) Otras Provisiones a Corto Plazo",0,0]
["g1) Valores en Garantía",0,0,null,"h. Otros Pasivos a Corto Plazo (h=h1+h2+h3)",{"$f":"+F42+F43+F44","v":0},{"$f":"+G42+G43+G44","v":0}]
["g2) Bienes en Garantía (excluye depósitos de fondos)",0,0,null,"h1) Ingresos por Clasificar",0,0]
["g3) Bienes Derivados de Embargos, Decomisos, Aseguramientos y Dación en Pago",0,0,null,"h2) Recaudación por Participar",0,0]
["g4) Adquisición con Fondos de Terceros",0,0,null,"h3) Otros Pasivos Circulantes",0,0]
[]
["IA. Total de Activos Circulantes (IA = a + b + c + d + e + f + g)",451540,{"$f":"+C8+C16+C24+C30+C36+C37+C40","v":95209},null,"IIA. Total de Pasivos Circulantes (IIA = a + b + c + d + e + f + g + h)",14968,25755]
[]
["Activo No Circulante",null,null,null,"Pasivo No Circulante"]
["a. Inversiones Financieras a Largo Plazo",0,0,null,"a. Cuentas por Pagar a Largo Plazo",0,0]
["b. Derechos a Recibir Efectivo o Equivalentes a Largo Plazo ",0,0,null,"b. Documentos por Pagar a Largo Plazo",0,0]
["c. Bienes Inmuebles, Infraestructura y Construcciones en Proceso ",0,0,null,"c. Deuda Pública a Largo Plazo",0,0]
["d. Bienes Muebles ",105370,281228,null,"d. Pasivos Diferidos a Largo Plazo",0,0]
["e. Activos Intangibles ",0,0,null,"e. Fondos y Bienes de Terceros en Garantía y/o en Administración a Largo Plazo",0,0]
["f. Depreciación, Deterioro y Amortización Acumulada de Bienes ",0,0,null,"f. Provisiones a Largo Plazo",0,0]
["g. Activos Diferidos",0,0]
["h. Estimación por Pérdida o Deterioro de Activos no Circulantes",0,0,null,"IIB. Total de Pasivos No Circulantes (IIB = a + b + c + d + e + f)",{"$f":"+F49+F50+F51+F52+F53+F54","v":0},{"$f":"+G49+G50+G51+G52+G53+G54","v":0}]
["i. Otros Activos no Circulantes",0,0]
[null,null,null,null,"II. Total del Pasivo (II = IIA + IIB)",{"$f":"+F46+F56","v":14968},{"$f":"+G46+G56","v":25755}]
["IB. Total de Activos No Circulantes (IB = a + b + c + d + e + f + g + h + i)",{"$f":"+B52","v":105370},{"$f":"+C52","v":281228}]
[null,null,null,null,"HACIENDA PÚBLICA/PATRIMONIO"]
["I. Total del Activo (I = IA + IB)",556910,{"$f":"+C46+C59","v":376437}]
[null,null,null,null,"IIIA. Hacienda Pública/Patrimonio Contribuido (IIIA = a + b + c)",{"$f":"+F63+F64+F65","v":0},{"$f":"+G63+G64+G65","v":0}]
[null,null,null,null,"a. Aportaciones",0,0]
[null,null,null,null,"b. Donaciones de Capital",0,0]
[null,null,null,null,"c. Actualización de la Hacienda Pública/Patrimonio",0,0]
[]
[null,null,null,null,"IIIB. Hacienda Pública/Patrimonio Generado (IIIB = a + b + c + d + e)",514419,333364]
[null,null,null,null,"a. Resultados del Ejercicio (Ahorro/ Desahorro)",484750,68649]
[null,null,null,null,"b. Resultados de Ejercicios Anteriores",955,805]
[null,null,null,null,"c. Revalúos",0,0]
[null,null,null,null,"d. Reservas",0,0]
[null,null,null,null,"e. Rectificaciones de Resultados de Ejercicios Anteriores",56238,281228]
[]
[null,null,null,null,"IIIC. Exceso o Insuficiencia en la Actualización de la Hacienda Pública/Patrimonio (IIIC=a+b)",{"$f":"+F75+F76","v":0},{"$f":"+G75+G76","v":0}]
[null,null,null,null,"a. Resultado por Posición Monetaria",0,0]
[null,null,null,null,"b. Resultado por Tenencia de Activos no Monetarios",0,0]
[]
[null,null,null,null,"III. Total Hacienda Pública/Patrimonio (III = IIIA + IIIB + IIIC)",541943,350682]
[]
[null,null,null,null,"IV. Total del Pasivo y Hacienda Pública/Patrimonio (IV = II + III)",{"$f":"+F58+F78-1","v":556910},{"$f":"+G58+G78","v":376437}]

{"sheet":"2","index":1,"n_rows":38,"n_cols":9,"rows_kept":38,"cut":false,"hidden":false,"merged":[[18,0,18,1],[0,0,0,8],[1,0,1,8],[2,0,2,8],[3,0,3,8],[4,0,5,1],[4,3,5,3],[4,4,5,4],[4,5,5,5],[4,7,5,7],[4,8,5,8],[6,0,6,1],[7,0,7,1],[8,0,8,1],[12,0,12,1],[16,0,16,1],[31,1,33,1],[19,0,19,1],[20,0,20,1],[21,0,21,1],[22,0,22,1],[23,0,23,1],[24,0,24,1],[25,0,25,1],[26,0,26,1],[27,0,27,1],[28,0,28,1],[29,0,29,1]]}
["CONSEJO ESTATAL DE POBLACION"]
["Informe Analítico de la Deuda Pública y Otros Pasivos - LDF"]
["Del 1 de enero al 30 de septiembre de 2017 "]
["(PESOS)"]
["Denominación de la Deuda Pública y Otros Pasivos (c)",null,"Saldo","Disposiciones del Periodo (e)","Amortizaciones del Periodo (f)","Revaluaciones, Reclasificaciones y Otros Ajustes (g)","Saldo Final del Periodo (h)","Pago de Intereses del Periodo (i)","Pago de Comisiones y demás costos asociados durante el Periodo (j)"]
[null,null,"al 31 de diciembre de 2015 (d)",null,null,null,"h=d+e-f+g"]
[]
["1. Deuda Pública (1=A+B)",null,{"$f":"+C9+C13","v":0},{"$f":"+D9+D13","v":0},0,0,0,0,0]
["A. Corto Plazo (A=a1+a2+a3)",null,{"$f":"+C10+C11+C12","v":0},{"$f":"+D10+D11+D12","v":0},0,0,0,0,0]
[null,"a1) Instituciones de Crédito",0,0,0,0,{"$f":"+C10+D10-E10+F10","v":0},0,0]
[null,"a2) Títulos y Valores",0,0,0,0,0,0,0]
[null,"a3) Arrendamientos Financieros",0,0,0,0,0,0,0]
["B. Largo Plazo (B=b1+b2+b3)",null,{"$f":"+C14+C15+C16","v":0},{"$f":"+D14+D15+D16","v":0},0,0,0,0,0]
[null,"b1) Instituciones de Crédito",0,0,0,0,0,0,0]
[null,"b2) Títulos y Valores",0,0,0,0,0,0,0]
[null,"b3) Arrendamientos Financieros",0,0,0,0,0,0,0]
["2. Otros Pasivos ",null,109566,1814784,1909382,0,14968,0,0]
[null,null,null,null,null,null,0]
["3. Total de la Deuda Pública y Otros Pasivos (3=1+2)",null,{"$f":"+C8+C17","v":109566},{"$f":"+D8+D17","v":1814784},1909382,0,14698,0,0]
[]
["4. Deuda Contingente 1 (informativo)"]
["A. Deuda Contingente 1",null,0,0,0,0,{"$f":"+C22+D22-E22+F22","v":0},0,0]
["B. Deuda Contingente 2",null,0,0,0,0,{"$f":"+C23+D23-E23+F23","v":0},0,0]
["C. Deuda Contingente XX",null,0,0,0,0,0,0,0]
[]
["5. Valor de Instrumentos Bono Cupón Cero 2 (Informativo)"]
["A. Instrumento Bono Cupón Cero 1",null,0,0,0,0,{"$f":"+C27+D27-E27+F27","v":0},0,0]
["B. Instrumento Bono Cupón Cero 2",null,0,0,0,0,{"$f":"+C28+D28-E28+F28","v":0},0,0]
["C. Instrumento Bono Cupón Cero XX",null,0,0,0,0,0,0,0]
[]
[]
[null,"Obligaciones a Corto Plazo (k)","Monto","Plazo","Tasa de Interés","Comisiones y Costos Relacionados (o)","Tasa Efectiva"]
[null,null,"Contratado (l)","Pactado","(n)",null,"(p)"]
[null,null,null,"(m)"]
[null,"6. Obligaciones a Corto Plazo (Informativo)"]
[null,"A. Crédito 1",0,0,0,0,0]
[null,"B. Crédito 2",0,0,0,0,0]
[null,"C. Crédito XX",0,0,0,0,0]

{"sheet":"3","index":2,"n_rows":19,"n_cols":11,"rows_kept":19,"cut":false,"hidden":false,"merged":[[0,0,0,10],[1,0,1,10],[2,0,2,10],[3,0,3,10]]}
["CONSEJO ESTATAL DE POBLACION"]
["Informe Analítico de Obligaciones Diferentes de Financiamientos – LDF"]
["Del 1 de enero al 30 de septiembre de 2017 (b)"]
["(PESOS)"]
["Denominación de las Obligaciones Diferentes de Financiamiento (c)","Fecha del Contrato (d)","Fecha de inicio de operación del proyecto (e)","Fecha de vencimiento (f)","Monto de la inversión pactado (g)","Plazo pactado (h)","Monto promedio mensual del pago de la contraprestación (i)","Monto promedio mensual del pago de la contraprestación correspondiente al pago de inversión (j)","Monto pagado de la inversión al 31 de diciembre de 2016 (k)","Monto pagado de la inversión actualizado al 31 de diciembre de 2016 (l)","Saldo pendiente por pagar de la inversión al 31 de diciembre de 2016 (m = g – l)"]
[]
["A. Asociaciones Público Privadas (APP’s) (A=a+b+c+d)",null,null,null,{"$f":"+E8+E9+E10+E11","v":0},null,0,0,0,0,0]
["a) APP 1",null,null,null,0,null,0,0,0,0,0]
["b) APP 2",null,null,null,0,null,0,0,0,0,0]
["c) APP 3",null,null,null,0,null,0,0,0,0,0]
["d) APP XX",null,null,null,0,null,0,0,0,0,0]
[]
["B. Otros Instrumentos (B=a+b+c+d)",null,null,null,{"$f":"+E14+E15+E16+E17","v":0},null,0,0,0,0,0]
["a) Otro Instrumento 1",null,null,null,0,null,0,0,0,0,0]
["b) Otro Instrumento 2",null,null,null,0,null,0,0,0,0,0]
["c) Otro Instrumento 3",null,null,null,0,null,0,0,0,0,0]
["d) Otro Instrumento XX",null,null,null,0,null,0,0,0,0,0]
[]
["C. Total de Obligaciones Diferentes de Financiamiento (C=A+B)",null,null,null,{"$f":"+E7+E13","v":0},null,0,0,0,0,0]

{"sheet":"4","index":3,"n_rows":77,"n_cols":5,"rows_kept":77,"cut":false,"hidden":false,"merged":[[5,0,6,1],[5,3,6,3],[26,0,26,1],[35,0,36,1],[35,2,36,2],[35,3,36,3],[44,2,45,2],[44,3,45,3],[44,4,45,4],[47,0,48,1],[47,3,48,3],[76,4,77,4],[0,0,0,4],[1,0,1,4],[2,0,2,4],[3,0,3,4],[49,0,49,1],[63,0,64,1],[63,2,64,2],[63,3,64,3],[65,0,65,1],[76,0,77,0],[76,1,77,1],[76,2,77,2],[76,3,77,3],[44,0,45,0],[44,1,45,1]]}
["CONSEJO ESTATAL DE POBLACION"]
["Balance Presupuestario - LDF"]
["Del 1 de enero al 30 de septiembre de 2017 (b)"]
["(PESOS)"]
[]
["Concepto (c)",null,"Estimado/","Devengado","Recaudado/"]
[null,null,"Aprobado (d)",null,"Pagado "]
[]
[null,"A. Ingresos Totales (A = A1+A2+A3)",{"$f":"+C10+C11+C12","v":2395000},2100000,2100000]
[null,"A1. Ingresos de Libre Disposición",2395000,2100000,2100000]
[null,"A2. Transferencias Federales Etiquetadas",{"$f":"+'5'!D68","v":0},0,0]
[null,"A3. Financiamiento Neto",{"$f":"+'5'!D70","v":0},{"$f":"+'5'!G70","v":0},{"$f":"+'5'!H70","v":0}]
[]
[null,"B. Egresos Presupuestarios1 (B = B1+B2)",{"$f":"+C15+C16","v":2695000},1664382,1664382]
[null,"B1. Gasto No Etiquetado (sin incluir Amortización de la Deuda Pública)",2695000,1664382,1664382]
[null,"B2. Gasto Etiquetado (sin incluir Amortización de la Deuda Pública) "]
[]
[null,"C. Remanentes del Ejercicio Anterior ( C = C1 + C2 )",{"$f":"+C19+C20","v":0},{"$f":"+D19+D20","v":0},{"$f":"+E19+E20","v":0}]
[null,"C1. Remanentes de Ingresos de Libre Disposición aplicados en el periodo",0,0,0]
[null,"C2. Remanentes de Transferencias Federales Etiquetadas aplicados en el periodo",0,0,0]
[]
[null,"I. Balance Presupuestario (I = A – B + C)  ",-300000,435618,435618]
[null,"II. Balance Presupuestario sin Financiamiento Neto (II = I - A3)",{"$f":"+C22-C12","v":-300000},{"$f":"+D22-D12","v":435618},435618]
[null,"III. Balance Presupuestario sin Financiamiento Neto y sin Remanentes del Ejercicio Anterior (III= II - C)",{"$f":"+C23-C18","v":-300000},{"$f":"+D23-D18","v":435618},435618]
[]
[]
["Concepto",null,"Aprobado","Devengado","Pagado"]
[]
[null,"E. Intereses, Comisiones y Gastos de la Deuda (E = E1+E2)",{"$f":"+C30+C31","v":0},{"$f":"+D30+D31","v":0},0]
[null,"E1. Intereses, Comisiones y Gastos de la Deuda con Gasto No Etiquetado",0,0,0]
[null,"E2. Intereses, Comisiones y Gastos de la Deuda con Gasto Etiquetado",0,0,0]
[]
[null,"IV. Balance Primario (IV = III + E)",{"$f":"+C24+C29","v":-300000},{"$f":"+D24+D29","v":435618},435618]
[]
[]
["Concepto",null,"Estimado/ Aprobado","Devengado","Recaudado/"]
[null,null,null,null,"Pagado"]
[]
[null,"F. Financiamiento (F = F1 + F2)",{"$f":"+C40+C41","v":0},{"$f":"+D40+D41","v":0},0]
[null,"F1. Financiamiento con Fuente de Pago de Ingresos de Libre Disposición",0,0,0]
[null,"F2. Financiamiento con Fuente de Pago de Transferencias Federales Etiquetadas"]
[null,"G. Amortización de la Deuda (G = G1 + G2)",{"$f":"+C43+C44","v":0},{"$f":"+D43+D44","v":0},0]
[null,"G1. Amortización de la Deuda Pública con Gasto No Etiquetado",0,0,0]
[null,"G2. Amortización de la Deuda Pública con Gasto Etiquetado",0,0,0]
[null,"A3. Financiamiento Neto (A3 = F – G )",{"$f":"+C39-C42","v":0},{"$f":"+D39-D42","v":0},{"$f":"+E39-E42","v":0}]
[]
[]
["Concepto",null,"Estimado/","Devengado","Recaudado/"]
[null,null,"Aprobado",null,"Pagado"]
[]
[null,"A1. Ingresos de Libre Disposición ",{"$f":"+C10","v":2395000},{"$f":"+D10","v":2100000},2100000]
[null,"A3.1 Financiamiento Neto con Fuente de Pago de Ingresos de Libre Disposición (A3.1 = F1 – G1)",0,0,{"$f":"+E53+E54","v":0}]
[null,"F1. Financiamiento con Fuente de Pago de Ingresos de Libre Disposición",0,0,0]
[null,"G1. Amortización de la Deuda Pública con Gasto No Etiquetado",0,0,0]
[]
[null,"B1. Gasto No Etiquetado (sin incluir Amortización de la Deuda Pública)",0,0,0]
[]
[null,"C1. Remanentes de Ingresos de Libre Disposición aplicados en el periodo",0,0,0]
[]
[null,"V. Balance Presupuestario de Recursos Disponibles (V = A1 + A3.1 – B 1 + C1)",{"$f":"+C51+C52-C56-C58","v":2395000},{"$f":"+D51+D52-D56-D58","v":2100000},2100000]
[null,"VI. Balance Presupuestario de Recursos Disponibles sin Financiamiento Neto (VI = V – A3.1)",{"$f":"+C60-C52","v":2395000},{"$f":"+D60-D52","v":2100000},2100000]
[]
[]
["Concepto",null,"Estimado/ Aprobado","Devengado","Recaudado/"]
[null,null,null,null,"Pagado"]
[]
[null,"A2. Transferencias Federales Etiquetadas",0,0,0]
[null,"A3.2 Financiamiento Neto con Fuente de Pago de Transferencias Federales Etiquetadas (A3.2 = F2 – G2)",0,0,0]
[null,"F2. Financiamiento con Fuente de Pago de Transferencias Federales Etiquetadas",0,0,0]
[null,"G2. Amortización de la Deuda Pública con Gasto Etiquetado",0,0,0]
[]
[null,"B2. Gasto Etiquetado (sin incluir Amortización de la Deuda Pública)",2695000,1664382,1664382]
[]
[null,"C2. Remanentes de Transferencias Federales Etiquetadas aplicados en el periodo",0,0,0]
[]
[null,"VII. Balance Presupuestario de Recursos Etiquetados (VII = A2 + A3.2 – B2 + C2)",{"$f":"+C67+C68-C72+C74","v":-2695000},{"$f":"+D67+D68-D72+D74","v":-1664382},-1664382]
[null,"VIII. Balance Presupuestario de Recursos Etiquetados sin Financiamiento Neto (VIII = VII – A3.2)",{"$f":"+C76-C68","v":-2695000},{"$f":"+D76-D68","v":-1664382},-1664382]

{"sheet":"5","index":4,"n_rows":78,"n_cols":19,"rows_kept":78,"cut":false,"hidden":false,"merged":[[0,0,0,8],[1,0,1,8],[2,0,2,8],[3,0,3,8],[4,0,4,2],[4,3,4,7],[4,8,6,8],[5,0,5,2],[6,0,6,2],[5,3,6,3],[14,1,14,2],[5,4,6,4],[5,5,6,5],[5,6,6,6],[5,7,6,7],[7,0,7,2],[8,0,8,2],[9,1,9,2],[10,1,10,2],[11,1,11,2],[12,1,12,2],[13,1,13,2],[35,1,35,2],[15,1,15,2],[16,0,17,0],[16,1,16,2],[17,1,17,2],[16,5,17,5],[16,6,17,6],[16,7,17,7],[16,8,17,8],[29,1,29,2],[16,3,17,3],[16,4,17,4],[36,1,36,2],[38,1,38,2],[42,0,42,2],[43,0,43,2],[66,1,66,2],[44,0,44,2],[46,0,46,2],[47,1,47,2],[56,1,56,2],[61,1,61,2],[64,1,64,2],[65,1,65,2],[78,1,78,2],[67,0,67,2],[68,1,68,2],[69,0,69,2],[70,1,70,2],[71,1,71,2],[72,0,72,2],[73,1,73,2],[74,1,74,2],[75,1,75,2],[76,1,76,2],[77,1,77,2]]}
["CONSEJO ESTATAL DE POBLACION"]
["Estado Analítico de Ingresos Detallado - LDF"]
["Del 1 de enero al 30 de septiembre de 2017 (b)"]
["(PESOS)"]
[null,null,null,"Ingreso",null,null,null,null,"Diferencia (e)"]
["Concepto",null,null,"Estimado (d)","Ampliaciones/ (Reducciones)","Modificado","Devengado","Recaudado"]
["(c)"]
[]
["Ingresos de Libre Disposición"]
[null,"A. Impuestos",null,0,0,{"$f":"+D10+E10","v":0},0,0,{"$f":"+H10-D10","v":0}]
[null,"B. Cuotas y Aportaciones de Seguridad Social",null,0,0,{"$f":"+D11+E11","v":0},0,0,{"$f":"+H11-D11","v":0}]
[null,"C. Contribuciones de Mejoras",null,0,0,0,0,0,0]
[null,"D. Derechos",null,0,0,0,0,0,0]
[null,"E. Productos",null,0,0,0,0,0,0]
[null,"F. Aprovechamientos",null,0,0,0,0,0,0]
[null,"G. Ingresos por Ventas de Bienes y Servicios",null,null,0,0,0,0,0]
[null,"H. Participaciones",null,{"$f":"+D19+D20+D21+D22+D23+D24+D25+D26+D27+D28+D29","v":2395000},{"$f":"+E19+E20+E21+E22+E23+E24+E25+E26+E27+E28+E29","v":300000},2695000,2100000,2100000,595000]
[null,"(H=h1+h2+h3+h4+h5+h6+h7+h8+h9+h10+h11)"]
[null,null,"h1) Fondo General de Participaciones ",2395000,300000,2695000,2100000,2100000,595000]
[null,null,"h2) Fondo de Fomento Municipal",0,0,{"$f":"+D20+E20","v":0},0,0,{"$f":"+H20-D20","v":0}]
[null,null,"h3) Fondo de Fiscalización y Recaudación",0,0,0,0,0,0]
[null,null,"h4) Fondo de Compensación",0,0,0,0,0,0]
[null,null,"h5) Fondo de Extracción de Hidrocarburos",0,0,0,0,0,0]
[null,null,"h6) Impuesto Especial Sobre Producción y Servicios",0,0,0,0,0,0]
[null,null,"h7) 0.136% de la Recaudación Federal Participable",0,0,0,0,0,0,null,null,6101499,-223407.18,{"$f":"+L25+M25","v":5878091.8200000003},5654684.6399999997,null,null,null,"es convenio federal, pero no esta etiquetado especificamente a que se aplica"]
[null,null,"h8) 3.17% Sobre Extracción de Petróleo",0,0,0,0,0,0,null,null,584868,0,{"$f":"+L26+M26","v":584868},4245784.8899999997]
[null,null,"h9) Gasolinas y Diésel",0,0,0,0,0,0,null,null,null,1469500,1469500,1102125]
[null,null,"h10) Fondo del Impuesto Sobre la Renta",0,0,0,0,0,0,null,null,null,62000,62000,62000]
[null,null,"h11) Fondo de Estabilización de los Ingresos de las Entidades Federativas",0,0,0,0,0,0,null,null,null,269625,269625,269600]
[null,"I. Incentivos Derivados de la Colaboración Fiscal (I=i1+i2+i3+i4+i5)",null,{"$f":"+D31+D32+D33+D34","v":0},{"$f":"+E31+E32+E33+E34","v":0},0,0,0,{"$f":"+H30-D30","v":0},null,null,null,109875,109875,109840,{"$f":"SUM(L25:L30)","v":6686367},{"$f":"SUM(M25:M30)","v":1687592.82},{"$f":"SUM(N25:N30)","v":8373959.8200000003},{"$f":"SUM(O25:O30)","v":11444034.529999999}]
[null,null,"i1) Tenencia o Uso de Vehículos",0,0,0,0,0,0,null,null,null,192600,192600,192600]
[null,null,"i2) Fondo de Compensación ISAN",0,0,0,0,0,0,null,null,null,124627,124627,124627,{"$f":"SUM(L31:L32)","v":0},{"$f":"SUM(M31:M32)","v":317227},317227,{"$f":"SUM(N31:N32)","v":317227}]
[null,null,"i3) Impuesto Sobre Automóviles Nuevos",0,0,0,0,0,0]
[null,null,"i4) Fondo de Compensación de Repecos-Intermedios",0,0,0,0,0,0]
[null,null,"i5) Otros Incentivos Económicos",0,0,0,0,0,0]
[null,"J. Transferencias",null,0,0,0,0,0,0]
[null,"K. Convenios",null,{"$f":"+D38","v":0},{"$f":"+E38","v":0},0,0,0,0]
[null,null,"k1) Otros Convenios y Subsidios",0,0,0,0,0,0]
[null,"L. Otros Ingresos de Libre Disposición (L=l1+l2)",null,{"$f":"+D40+D41","v":0},{"$f":"+E40+E41","v":0},0,0,0,0]
[null,null,"l1) Participaciones en Ingresos Locales ",0,0,0,0,0,0]
[null,null,"l2) Otros Ingresos de Libre Disposición",0,0,0,0,0,0]
[]
["I. Total de Ingresos de Libre Disposición"]
["(I=A+B+C+D+E+F+G+H+I+J+K+L)",null,null,{"$f":"+D10+D11+D12+D13+D14+D15+D16+D17+D30+D36+D37+D39","v":2395000},{"$f":"+E10+E11+E12+E13+E14+E15+E16+E17+E30+E36+E37+E39","v":300000},2695000,2100000,2100000,595000]
["Ingresos Excedentes de Ingresos de Libre Disposición"]
[]
["Transferencias Federales Etiquetadas "]
[null,"A. Aportaciones (A=a1+a2+a3+a4+a5+a6+a7+a8)",null,{"$f":"+D49+D50+D51+D52+D53+D54+D55+D56","v":0},{"$f":"+E49+E50+E51+E52+E53+E54+E55+E56","v":0},{"$f":"+D48+E48","v":0},0,0,{"$f":"+H48-D48","v":0}]
[null,null,"a1) Fondo de Aportaciones para la Nómina Educativa y Gasto Operativo",0,0,{"$f":"+D49+E49","v":0},0,0,0]
[null,null,"a2) Fondo de Aportaciones para los Servicios de Salud",0,0,{"$f":"+D50+E50","v":0},0,0,{"$f":"+H50-D50","v":0}]
[null,null,"a3) Fondo de Aportaciones para la Infraestructura Social",0,0,0,0,0,0]
[null,null,"a4) Fondo de Aportaciones para el Fortalecimiento de los Municipios y de las Demarcaciones Territoriales del Distrito Federal",0,0,0,0,0,0]
[null,null,"a5) Fondo de Aportaciones Múltiples",0,0,0,0,0,0]
[null,null,"a6) Fondo de Aportaciones para la Educación Tecnológica y de Adultos",0,0,0,0,0,0]
[null,null,"a7) Fondo de Aportaciones para la Seguridad Pública de los Estados y del Distrito Federal",0,0,0,0,0,0]
[null,null,"a8) Fondo de Aportaciones para el Fortalecimiento de las Entidades Federativas",0,0,0,0,0,0]
[null,"B. Convenios (B=b1+b2+b3+b4)",null,{"$f":"+D58+D59+D60+D61","v":0},{"$f":"+E58+E59+E60+E61","v":0},0,0,0,0]
[null,null,"b1) Convenios de Protección Social en Salud",0,0,0,0,0,0]
[null,null,"b2) Convenios de Descentralización",0,0,{"$f":"+D59+E59","v":0},0,0,{"$f":"+H59-D59","v":0}]
[null,null,"b3) Convenios de Reasignación",0,0,0,0,0,0]
[null,null,"b4) Otros Convenios y Subsidios",0,0,0,0,0,0]
[null,"C. Fondos Distintos de Aportaciones (C=c1+c2)",null,{"$f":"+D63+D64","v":0},{"$f":"+E63+E64","v":0},0,0,0,0]
[null,null,"c1) Fondo para Entidades Federativas y Municipios Productores de Hidrocarburos",0,0,0,0,0,0]
[null,null,"c2) Fondo Minero",0,0,0,0,0,0]
[null,"D. Transferencias, Subsidios y Subvenciones, y Pensiones y Jubilaciones",null,0,0,0,0,0,0]
[null,"E. Otras Transferencias Federales Etiquetadas",null,0,0,0,0,0,0]
[]
["II. Total de Transferencias Federales Etiquetadas (II = A + B + C + D + E)",null,null,{"$f":"+D48+D57+D62+D65+D66","v":0},{"$f":"+E48+E57+E62+E65+E66","v":0},{"$f":"+D68+E68","v":0},0,{"$f":"+H48+H57+H62+H65+H66","v":0},0]
[]
["III. Ingresos Derivados de Financiamientos (III = A)",null,null,{"$f":"+D48","v":0},{"$f":"+E71","v":0},{"$f":"+D70+E70","v":0},{"$f":"+E70+F70","v":0},0,0]
[null,"A. Ingresos Derivados de Financiamientos",null,0,0,0,0,0,0]
[]
["IV. Total de Ingresos (IV = I + II + III)",null,null,{"$f":"+D44+D68+D70","v":2395000},{"$f":"+E44+E68+E70","v":300000},2695000,{"$f":"+G44+G68+G70","v":2100000},{"$f":"+H44+H68+H70","v":2100000},{"$f":"+I39+I40+I41+I42+I43+I44+I45+I46+I59+I65+I66+I68","v":595000}]
[]
[null,"Datos Informativos"]
[null,"1. Ingresos Derivados de Financiamientos con Fuente de Pago de Ingresos de Libre Disposición",null,0,0,{"$f":"+D76+E76","v":0},0,0,{"$f":"+H76-D76","v":0}]
[null,"2. Ingresos Derivados de Financiamientos con Fuente de Pago de Transferencias Federales Etiquetadas",null,0,0,0,0,0,0]
[null,"3. Ingresos Derivados de Financiamientos (3 = 1 + 2)",null,{"$f":"+D76+D77","v":0},{"$f":"+E76+E77","v":0},{"$f":"+D78+E78","v":0},0,0,{"$f":"+H78-D78","v":0}]

{"sheet":"6A","index":5,"n_rows":159,"n_cols":8,"rows_kept":159,"cut":false,"hidden":false,"merged":[[46,0,46,1],[0,0,0,7],[1,0,1,7],[2,0,2,7],[3,0,3,7],[4,0,4,7],[5,0,6,1],[5,2,5,6],[5,7,6,7],[7,0,7,1],[8,0,8,1],[16,0,16,1],[26,0,26,1],[36,0,36,1],[56,0,56,1],[60,0,60,1],[69,0,69,1],[73,0,73,1],[81,0,81,1],[84,0,84,1],[92,0,92,1],[102,0,102,1],[112,0,112,1],[122,0,122,1],[132,0,132,1],[136,0,136,1],[145,0,145,1],[149,0,149,1],[158,0,158,1]]}
["CONSEJO ESTATAL DE POBLACION"]
["Estado Analítico del Ejercicio del Presupuesto de Egresos Detallado - LDF"]
["Clasificación por Objeto del Gasto (Capítulo y Concepto) "]
["Del 1 de enero al 30 de septiembre de 2017 (b)"]
["(PESOS)"]
["Concepto (c)",null,"Egresos",null,null,null,null,"Subejercicio (e)"]
[null,null,"Aprobado (d)","Ampliaciones/ (Reducciones) ","Modificado ","Devengado","Pagado "]
["I. Gasto No Etiquetado (I=A+B+C+D+E+F+G+H+I)",null,2695000,{"$f":"+D9+D17+D27+D37+D47+D57+D61+D70+D75","v":0},2695000,1664382,1664382,1030618]
["A. Servicios Personales (A=a1+a2+a3+a4+a5+a6+a7)",null,1691000,{"$f":"+D10+D11+D12+D13+D14+D15+D16","v":0},1691000,1040224,1040224,650776]
[null,"a1) Remuneraciones al Personal de Carácter Permanente",1140000,0,1140000,801012,801012,{"$f":"+E10-F10","v":338988}]
[null,"a2) Remuneraciones al Personal de Carácter Transitorio",0,0,{"$f":"+C11+D11","v":0},0,0,{"$f":"+E11-F11","v":0}]
[null,"a3) Remuneraciones Adicionales y Especiales",255000,0,255000,53943,53943,201057]
[null,"a4) Seguridad Social",52000,0,52000,35512,35512,16488]
[null,"a5) Otras Prestaciones Sociales y Económicas",244000,0,244000,149757,149757,94243]
[null,"a6) Previsiones",0,0,0,0,0,0]
[null,"a7) Pago de Estímulos a Servidores Públicos",0,0,0,0,0,0]
["B. Materiales y Suministros (B=b1+b2+b3+b4+b5+b6+b7+b8+b9)",null,370000,{"$f":"+D18+D19+D20+D21+D22+D23+D24+D25+D26","v":0},370000,267436,267436,102564]
[null,"b1) Materiales de Administración, Emisión de Documentos y Artículos Oficiales",276000,0,276000,195086,195086,80914]
[null,"b2) Alimentos y Utensilios",0,0,{"$f":"+C19+D19","v":0},0,0,0]
[null,"b3) Materias Primas y Materiales de Producción y Comercialización",0,0,0,0,0,0]
[null,"b4) Materiales y Artículos de Construcción y de Reparación",0,0,0,0,0,0]
[null,"b5) Productos Químicos, Farmacéuticos y de Laboratorio",0,0,0,0,0,0]
[null,"b6) Combustibles, Lubricantes y Aditivos",94000,0,94000,72350,72350,21650]
[null,"b7) Vestuario, Blancos, Prendas de Protección y Artículos Deportivos",0,0,{"$f":"+C24+D24","v":0},0,0,0]
[null,"b8) Materiales y Suministros Para Seguridad",0,0,0,0,0,0]
[null,"b9) Herramientas, Refacciones y Accesorios Menores",0,0,0,0,0,0]
["C. Servicios Generales (C=c1+c2+c3+c4+c5+c6+c7+c8+c9)",null,544000,{"$f":"+D28+D29+D30+D31+D32+D33+D34+D35+D36","v":0},544000,307590,307590,236410]
[null,"c1) Servicios Básicos",54000,0,54000,19611,19611,{"$f":"+E28-F28","v":34389}]
[null,"c2) Servicios de Arrendamiento",0,0,{"$f":"+C29+D29","v":0},0,0,{"$f":"+E29-F29","v":0}]
[null,"c3) Servicios Profesionales, Científicos, Técnicos y Otros Servicios",47000,0,47000,522,522,46478]
[null,"c4) Servicios Financieros, Bancarios y Comerciales",20000,0,20000,9559,9559,10441]
[null,"c5) Servicios de Instalación, Reparación, Mantenimiento y Conservación",62000,0,62000,27859,27859,34141]
[null,"c6) Servicios de Comunicación Social y Publicidad",9000,0,9000,0,0,9000]
[null,"c7) Servicios de Traslado y Viáticos",75000,0,75000,44615,44615,30385]
[null,"c8) Servicios Oficiales",224000,0,224000,176283,176283,47717]
[null,"c9) Otros Servicios Generales",53000,0,53000,29142,29142,23858]
["D. Transferencias, Asignaciones, Subsidios y Otras Ayudas (D=d1+d2+d3+d4+d5+d6+d7+d8+d9)",null,{"$f":"+C38+C39+C40+C41+C42+C43+C44+C45+C46","v":0},{"$f":"+D38+D39+D40+D41+D42+D43+D44+D45+D46","v":0},0,0,0]
[null,"d1) Transferencias Internas y Asignaciones al Sector Público",0,0,{"$f":"+C38+D38","v":0},0,0,{"$f":"+E38-F38","v":0}]
[null,"d2) Transferencias al Resto del Sector Público",0,0,0,0,0,0]
[null,"d3) Subsidios y Subvenciones",0,0,0,0,0,0]
[null,"d4) Ayudas Sociales",0,0,0,0,0,0]
[null,"d5) Pensiones y Jubilaciones",0,0,0,0,0,0]
[null,"d6) Transferencias a Fideicomisos, Mandatos y Otros Análogos",0,0,0,0,0,0]
[null,"d7) Transferencias a la Seguridad Social",0,0,0,0,0,0]
[null,"d8) Donativos",0,0,0,0,0,0]
[null,"d9) Transferencias al Exterior",0,0,0,0,0,0]
["E. Bienes Muebles, Inmuebles e Intangibles (E=e1+e2+e3+e4+e5+e6+e7+e8+e9)",null,{"$f":"+C48+C49+C50+C51+C52+C53+C54+C55+C56","v":90000},{"$f":"+D48+D49+D50+D51+D52+D53+D54+D55+D56","v":0},90000,49132,49132,40868]
[null,"e1) Mobiliario y Equipo de Administración",90000,0,{"$f":"+C48+D48","v":90000},49132,49132,{"$f":"+E48-F48","v":40868}]
[null,"e2) Mobiliario y Equipo Educacional y Recreativo",0,0,0,0,0,0]
[null,"e3) Equipo e Instrumental Médico y de Laboratorio",0,0,0,0,0,0]
[null,"e4) Vehículos y Equipo de Transporte",0,0,0,0,0,0]
[null,"e5) Equipo de Defensa y Seguridad",0,0,0,0,0,0]
[null,"e6) Maquinaria, Otros Equipos y Herramientas",0,0,0,0,0,0]
[null,"e7) Activos Biológicos",0,0,0,0,0,0]
[null,"e8) Bienes Inmuebles",0,0,0,0,0,0]
[null,"e9) Activos Intangibles",0,0,0,0,0,0]
["F. Inversión Pública (F=f1+f2+f3)",null,{"$f":"+C58+C59+C60","v":0},{"$f":"+D58+D59+D60","v":0},0,0,0,0]
[null,"f1) Obra Pública en Bienes de Dominio Público",0,0,{"$f":"+C58+D58","v":0},0,0,{"$f":"+E58-F58","v":0}]
[null,"f2) Obra Pública en Bienes Propios",0,0,0,0,0,0]
[null,"f3) Proyectos Productivos y Acciones de Fomento",0,0,0,0,0,0]
["G. Inversiones Financieras y Otras Provisiones (G=g1+g2+g3+g4+g5+g6+g7)",null,{"$f":"+C62+C63+C64+C65+C66+C68+C69","v":0},{"$f":"+D62+D63+D64+D65+D66+D68+D69","v":0},0,0,0,0]
[null,"g1) Inversiones Para el Fomento de Actividades Productivas",0,0,{"$f":"+C62+D62","v":0},0,0,{"$f":"+E62-F62","v":0}]
[null,"g2) Acciones y Participaciones de Capital",0,0,0,0,0,0]
[null,"g3) Compra de Títulos y Valores",0,0,0,0,0,0]
[null,"g4) Concesión de Préstamos",0,0,0,0,0,0]
[null,"g5) Inversiones en Fideicomisos, Mandatos y Otros Análogos",0,0,0,0,0,0]
[null,"Fideicomiso de Desastres Naturales (Informativo)",0,0,0,0,0,0]
[null,"g6) Otras Inversiones Financieras",0,0,0,0,0,0]
[null,"g7) Provisiones para Contingencias y Otras Erogaciones Especiales",0,0,0,0,0,0]
["H. Participaciones y Aportaciones (H=h1+h2+h3)",null,{"$f":"+C71+C72+C73","v":0},{"$f":"+D71+D72+D73","v":0},0,0,0,0]
[null,"h1) Participaciones",0,0,{"$f":"+C71+D71","v":0},0,0,{"$f":"+E71-F71","v":0}]
[null,"h2) Aportaciones",0,0,0,0,0,0]
[null,"h3) Convenios",0,0,0,0,0,0]
["I. Deuda Pública (I=i1+i2+i3+i4+i5+i6+i7)",null,0,0,0,0,0,0]
[null,"i1) Amortización de la Deuda Pública",{"$f":"+C76+C77+C78+C79+C80+C81","v":0},{"$f":"+D76+D77+D78+D79+D80+D81","v":0},0,0,0,0]
[null,"i2) Intereses de la Deuda Pública",0,0,{"$f":"+C76+D76","v":0},0,0,{"$f":"+E76-F76","v":0}]
[null,"i3) Comisiones de la Deuda Pública",0,0,0,0,0,0]
[null,"i4) Gastos de la Deuda Pública",0,0,0,0,0,0]
[null,"i5) Costo por Coberturas",0,0,0,0,0,0]
[null,"i6) Apoyos Financieros",0,0,0,0,0,0]
[null,"i7) Adeudos de Ejercicios Fiscales Anteriores (ADEFAS)",0,0,0,0,0,0]
[]
[]
["II. Gasto Etiquetado (II=A+B+C+D+E+F+G+H+I)",null,{"$f":"+C86+C94+C104+C114+C124+C134+C138+C147+C151","v":0},{"$f":"+D86+D94+D104+D114+D124+D134+D138+D147+D151","v":0},0,0,0,0]
["A. Servicios Personales (A=a1+a2+a3+a4+a5+a6+a7)",null,{"$f":"+C86+C87+C88+C89+C90+C91+C92","v":0},{"$f":"+D86+D87+D88+D89+D90+D91+D92","v":0},0,0,0,0]
[null,"a1) Remuneraciones al Personal de Carácter Permanente",{"$f":"+C87+C88+C89+C90+C91+C92+C93","v":0},0,0,0,0,0]
[null,"a2) Remuneraciones al Personal de Carácter Transitorio",{"$f":"+C88+C89+C90+C91+C92+C93+C94","v":0},0,0,0,0,0]
[null,"a3) Remuneraciones Adicionales y Especiales",{"$f":"+C89+C90+C91+C92+C93+C94+C95","v":0},0,0,0,0,0]
[null,"a4) Seguridad Social",{"$f":"+C90+C91+C92+C93+C94+C95+C96","v":0},0,0,0,0,0]
[null,"a5) Otras Prestaciones Sociales y Económicas",{"$f":"+C91+C92+C93+C94+C95+C96+C97","v":0},0,0,0,0,0]
[null,"a6) Previsiones",{"$f":"+C92+C93+C94+C95+C96+C97+C98","v":0},0,0,0,0,0]
[null,"a7) Pago de Estímulos a Servidores Públicos",{"$f":"+C93+C94+C95+C96+C97+C98+C99","v":0},0,0,0,0,0]
["B. Materiales y Suministros (B=b1+b2+b3+b4+b5+b6+b7+b8+b9)",null,{"$f":"+C94+C95+C96+C97+C98+C99+C100+C101+C102","v":0},{"$f":"+D94+D95+D96+D97+D98+D99+D100+D101+D102","v":0},0,0,0,0]
[null,"b1) Materiales de Administración, Emisión de Documentos y Artículos Oficiales",{"$f":"+C95+C96+C97+C98+C99+C100+C101","v":0},0,0,0,0,0]
[null,"b2) Alimentos y Utensilios",{"$f":"+C96+C97+C98+C99+C100+C101+C102","v":0},0,0,0,0,0]
[null,"b3) Materias Primas y Materiales de Producción y Comercialización",{"$f":"+C97+C98+C99+C100+C101+C102+C103","v":0},0,0,0,0,0]
[null,"b4) Materiales y Artículos de Construcción y de Reparación",{"$f":"+C98+C99+C100+C101+C102+C103+C104","v":0},0,0,0,0,0]
[null,"b5) Productos Químicos, Farmacéuticos y de Laboratorio",{"$f":"+C99+C100+C101+C102+C103+C104+C105","v":0},0,0,0,0,0]
[null,"b6) Combustibles, Lubricantes y Aditivos",{"$f":"+C100+C101+C102+C103+C104+C105+C106","v":0},0,0,0,0,0]
[null,"b7) Vestuario, Blancos, Prendas de Protección y Artículos Deportivos",{"$f":"+C101+C102+C103+C104+C105+C106+C107","v":0},0,0,0,0,0]
[null,"b8) Materiales y Suministros Para Seguridad",{"$f":"+C102+C103+C104+C105+C106+C107+C108","v":0},0,0,0,0,0]
[null,"b9) Herramientas, Refacciones y Accesorios Menores",{"$f":"+C103+C104+C105+C106+C107+C108+C109","v":0},0,0,0,0,0]
["C. Servicios Generales (C=c1+c2+c3+c4+c5+c6+c7+c8+c9)",null,{"$f":"+C104+C105+C106+C107+C108+C109+C110+C111+C112","v":0},{"$f":"+D104+D105+D106+D107+D108+D109+D110+D111+D112","v":0},0,0,0,0]
[null,"c1) Servicios Básicos",{"$f":"+C105+C106+C107+C108+C109+C110+C111","v":0},{"$f":"+D105+D106+D107+D108+D109+D110+D111","v":0},{"$f":"+E105+E106+E107+E108+E109+E110+E111","v":0},{"$f":"+F105+F106+F107+F108+F109+F110+F111","v":0},{"$f":"+G105+G106+G107+G108+G109+G110+G111","v":0},0]
[null,"c2) Servicios de Arrendamiento",0,0,0,0,0,0]
[null,"c3) Servicios Profesionales, Científicos, Técnicos y Otros Servicios",0,0,0,0,0,0]
[null,"c4) Servicios Financieros, Bancarios y Comerciales",0,0,0,0,0,0]
[null,"c5) Servicios de Instalación, Reparación, Mantenimiento y Conservación",0,0,0,0,0,0]
[null,"c6) Servicios de Comunicación Social y Publicidad",0,0,0,0,0,0]
[null,"c7) Servicios de Traslado y Viáticos",0,0,0,0,0,0]
[null,"c8) Servicios Oficiales",0,0,0,0,0,0]
[null,"c9) Otros Servicios Generales",0,0,0,0,0,0]
["D. Transferencias, Asignaciones, Subsidios y Otras Ayudas (D=d1+d2+d3+d4+d5+d6+d7+d8+d9)",null,{"$f":"+C114+C115+C116+C117+C118+C119+C120+C121+C122","v":0},{"$f":"+D114+D115+D116+D117+D118+D119+D120+D121+D122","v":0},0,0,0,0]
[null,"d1) Transferencias Internas y Asignaciones al Sector Público",{"$f":"+C115+C116+C117+C118+C119+C120+C121","v":0},{"$f":"+D115+D116+D117+D118+D119+D120+D121","v":0},{"$f":"+E115+E116+E117+E118+E119+E120+E121","v":0},{"$f":"+F115+F116+F117+F118+F119+F120+F121","v":0},{"$f":"+G115+G116+G117+G118+G119+G120+G121","v":0},0]
[null,"d2) Transferencias al Resto del Sector Público",0,0,0,0,0,0]
[null,"d3) Subsidios y Subvenciones",0,0,0,0,0,0]
[null,"d4) Ayudas Sociales",0,0,0,0,0,0]
[null,"d5) Pensiones y Jubilaciones",0,0,0,0,0,0]
[null,"d6) Transferencias a Fideicomisos, Mandatos y Otros Análogos",0,0,0,0,0,0]
[null,"d7) Transferencias a la Seguridad Social",0,0,0,0,0,0]
[null,"d8) Donativos",0,0,0,0,0,0]
[null,"d9) Transferencias al Exterior",0,0,0,0,0,0]
["E. Bienes Muebles, Inmuebles e Intangibles (E=e1+e2+e3+e4+e5+e6+e7+e8+e9)",null,{"$f":"+C124+C125+C126+C127+C128+C129+C130+C131+C132","v":0},{"$f":"+D124+D125+D126+D127+D128+D129+D130+D131+D132","v":0},0,0,0,0]
[null,"e1) Mobiliario y Equipo de Administración",{"$f":"+C125+C126+C127+C128+C129+C130+C131","v":0},{"$f":"+D125+D126+D127+D128+D129+D130+D131","v":0},{"$f":"+E125+E126+E127+E128+E129+E130+E131","v":0},{"$f":"+F125+F126+F127+F128+F129+F130+F131","v":0},{"$f":"+G125+G126+G127+G128+G129+G130+G131","v":0},0]
[null,"e2) Mobiliario y Equipo Educacional y Recreativo",0,0,0,0,0,0]
[null,"e3) Equipo e Instrumental Médico y de Laboratorio",0,0,0,0,0,0]
[null,"e4) Vehículos y Equipo de Transporte",0,0,0,0,0,0]
[null,"e5) Equipo de Defensa y Seguridad",0,0,0,0,0,0]
[null,"e6) Maquinaria, Otros Equipos y Herramientas",0,0,0,0,0,0]
[null,"e7) Activos Biológicos",0,0,0,0,0,0]
[null,"e8) Bienes Inmuebles",0,0,0,0,0,0]
[null,"e9) Activos Intangibles",0,0,0,0,0,0]
["F. Inversión Pública (F=f1+f2+f3)",null,{"$f":"+C134+C135+C136","v":0},{"$f":"+D134+D135+D136","v":0},0,0,0,0]
[null,"f1) Obra Pública en Bienes de Dominio Público",{"$f":"+C135+C136+C137+C138+C139+C140+C141","v":0},{"$f":"+D135+D136+D137+D138+D139+D140+D141","v":0},{"$f":"+E135+E136+E137+E138+E139+E140+E141","v":0},{"$f":"+F135+F136+F137+F138+F139+F140+F141","v":0},{"$f":"+G135+G136+G137+G138+G139+G140+G141","v":0},0]
[null,"f2) Obra Pública en Bienes Propios",0,0,0,0,0,0]
[null,"f3) Proyectos Productivos y Acciones de Fomento",0,0,0,0,0,0]
["G. Inversiones Financieras y Otras Provisiones (G=g1+g2+g3+g4+g5+g6+g7)",null,{"$f":"+C138+C139+C140+C141+C142+C143+C144+C145","v":0},{"$f":"+D138+D139+D140+D141+D142+D143+D144+D145","v":0},0,0,0,0]
[null,"g1) Inversiones Para el Fomento de Actividades Productivas",{"$f":"+C139+C140+C141+C142+C143+C144+C145","v":0},{"$f":"+D139+D140+D141+D142+D143+D144+D145","v":0},{"$f":"+E139+E140+E141+E142+E143+E144+E145","v":0},{"$f":"+F139+F140+F141+F142+F143+F144+F145","v":0},{"$f":"+G139+G140+G141+G142+G143+G144+G145","v":0},0]
[null,"g2) Acciones y Participaciones de Capital",0,0,0,0,0,0]
[null,"g3) Compra de Títulos y Valores",0,0,0,0,0,0]
[null,"g4) Concesión de Préstamos",0,0,0,0,0,0]
[null,"g5) Inversiones en Fideicomisos, Mandatos y Otros Análogos",0,0,0,0,0,0]
[null,"Fideicomiso de Desastres Naturales (Informativo)",0,0,0,0,0,0]
[null,"g6) Otras Inversiones Financieras",0,0,0,0,0,0]
[null,"g7) Provisiones para Contingencias y Otras Erogaciones Especiales",0,0,0,0,0,0]
["H. Participaciones y Aportaciones (H=h1+h2+h3)",null,{"$f":"+C147+C148+C149","v":0},{"$f":"+D147+D148+D149","v":0},0,0,0,0]
[null,"h1) Participaciones",{"$f":"+C148+C149+C150+C151+C152+C153+C154","v":0},{"$f":"+D148+D149+D150+D151+D152+D153+D154","v":0},{"$f":"+E148+E149+E150+E151+E152+E153+E154","v":0},{"$f":"+F148+F149+F150+F151+F152+F153+F154","v":0},{"$f":"+G148+G149+G150+G151+G152+G153+G154","v":0},0]
[null,"h2) Aportaciones",0,0,0,0,0,0]
[null,"h3) Convenios",0,0,0,0,0,0]
["I. Deuda Pública (I=i1+i2+i3+i4+i5+i6+i7)",null,{"$f":"+C151+C152+C153+C154+C155+C156+C157","v":0},{"$f":"+D151+D152+D153+D154+D155+D156+D157","v":0},0,0,0,0]
[null,"i1) Amortización de la Deuda Pública",0,0,0,0,0,0]
[null,"i2) Intereses de la Deuda Pública",0,0,0,0,0,0]
[null,"i3) Comisiones de la Deuda Pública",0,0,0,0,0,0]
[null,"i4) Gastos de la Deuda Pública",0,0,0,0,0,0]
[null,"i5) Costo por Coberturas",0,0,0,0,0,0]
[null,"i6) Apoyos Financieros",0,0,0,0,0,0]
[null,"i7) Adeudos de Ejercicios Fiscales Anteriores (ADEFAS)",0,0,0,0,0,0]
[]
["III. Total de Egresos (III = I + II)",null,2695000,{"$f":"+D8+D83","v":0},2695000,1664382,1664382,1030618]

{"sheet":"6B","index":6,"n_rows":28,"n_cols":7,"rows_kept":28,"cut":false,"hidden":false,"merged":[[5,0,6,0],[5,1,5,5],[5,6,6,6],[0,0,0,6],[1,0,1,6],[2,0,2,6],[3,0,3,6],[4,0,4,6],[17,6,18,6],[7,1,8,1],[7,2,8,2],[7,3,8,3],[7,4,8,4],[7,5,8,5],[7,6,8,6],[17,1,18,1],[17,2,18,2],[17,3,18,3],[17,4,18,4],[17,5,18,5]]}
["CONSEJO ESTATAL DE POBLACION"]
["Estado Analítico del Ejercicio del Presupuesto de Egresos Detallado - LDF"]
["Clasificación Administrativa"]
["Del 1 de enero al 30 de septiembre de 2017 (b)"]
["(PESOS)"]
["Concepto (c)","Egresos",null,null,null,null,"Subejercicio (e)"]
[null,"Aprobado (d)","Ampliaciones/ (Reducciones)","Modificado","Devengado","Pagado"]
["I. Gasto No Etiquetado",{"$f":"+B10+B11+B12+B13+B14+B15+B16+B17","v":2695000},{"$f":"+C10+C11+C12+C13+C14+C15+C16+C17","v":0},2695000,1664382,1664382,{"$f":"+G10","v":1030618}]
["(I=A+B+C+D+E+F+G+H)"]
["A. Consejo Estatal de Población ",2695000,0,2695000,1664382,1664382,1030618]
["B",0,0,0,0,0,0]
["C",0,0,0,0,0,0]
["D",0,0,0,0,0,0]
["E",0,0,0,0,0,0]
["F",0,0,0,0,0,0]
["G",0,0,0,0,0,0]
["H",0,0,0,0,0,0]
["II. Gasto Etiquetado",{"$f":"+B20+B21+B22+B23+B24+B25+B26+B27","v":0},{"$f":"+C20+C21+C22+C23+C24+C25+C26+C27","v":0},0,0,0]
["(II=A+B+C+D+E+F+G+H)"]
["A. Consejo Estatal de Población ",0,0,0,0,0,0]
["B",0,0,0,0,0,0]
["C",0,0,0,0,0,0]
["D",0,0,0,0,0,0]
["E",0,0,0,0,0,0]
["F",0,0,0,0,0,0]
["G",0,0,0,0,0,0]
["H",0,0,0,0,0,0]
["III. Total de Egresos (III = I + II)",{"$f":"+B8+B18","v":2695000},{"$f":"+C8+C18","v":0},{"$f":"+D8+D18","v":2695000},{"$f":"+E8+E18","v":1664382},{"$f":"+F8+F18","v":1664382},{"$f":"+G8","v":1030618}]

{"sheet":"6C","index":7,"n_rows":83,"n_cols":8,"rows_kept":83,"cut":false,"hidden":false,"merged":[[5,0,6,1],[5,2,5,6],[5,7,6,7],[0,0,0,7],[1,0,1,7],[2,0,2,7],[3,0,3,7],[4,0,4,7],[82,0,82,1],[7,0,7,1],[8,0,8,1],[9,0,9,1],[19,0,19,1],[28,0,28,1],[39,0,39,1],[45,0,45,1],[46,0,46,1],[56,0,56,1],[65,0,65,1],[76,0,76,1]]}
["CONSEJO ESTATAL DE POBLACION"]
["Estado Analítico del Ejercicio del Presupuesto de Egresos Detallado - LDF"]
["Clasificación Funcional (Finalidad y Función)"]
["Del 1 de enero Al 30 de septiembre  de 2017 (b)"]
["(PESOS)"]
["Concepto (c)",null,"Egresos",null,null,null,null,"Subejercicio (e)"]
[null,null,"Aprobado (d)","Ampliaciones/ (Reducciones) ","Modificado ","Devengado","Pagado"]
[]
["I. Gasto No Etiquetado (I=A+B+C+D)",null,{"$f":"+C10+C20+C29","v":2695000},{"$f":"+D10+D20+D29","v":0},2695000,1664382,1664382,{"$f":"+H13","v":1030618}]
["A. Gobierno (A=a1+a2+a3+a4+a5+a6+a7+a8)",null,{"$f":"+C11+C12+C13+C14+C15+C16+C17+C18","v":2695000},{"$f":"+D11+D12+D13+D14+D15+D16+D17+D18","v":0},2695000,1664382,1664382,{"$f":"+H13","v":1030618}]
[null,"a1) Legislación",0,0,0,0,0,0]
[null,"a2) Justicia",0,0,0,0,0,0]
[null,"a3) Coordinación de la Política de Gobierno",{"$f":"+'6B'!B10","v":2695000},{"$f":"+'6B'!C10","v":0},{"$f":"+'6B'!D10","v":2695000},{"$f":"+'6B'!E10","v":1664382},{"$f":"+'6B'!F10","v":1664382},{"$f":"+'6B'!G10","v":1030618}]
[null,"a4) Relaciones Exteriores",0,0,0,0,0,0]
[null,"a5) Asuntos Financieros y Hacendarios",0,0,0,0,0,0]
[null,"a6) Seguridad Nacional",0,0,0,0,0,0]
[null,"a7) Asuntos de Orden Público y de Seguridad Interior",0,0,0,0,0,0]
[null,"a8) Otros Servicios Generales",0,0,0,0,0,0]
[]
["B. Desarrollo Social (B=b1+b2+b3+b4+b5+b6+b7)",null,{"$f":"+C21+C22+C23+C24+C25+C26+C27","v":0},{"$f":"+D21+D22+D23+D24+D25+D26+D27","v":0},0,0,0,0]
[null,"b1) Protección Ambiental",0,0,0,0,0,0]
[null,"b2) Vivienda y Servicios a la Comunidad",0,0,0,0,0,0]
[null,"b3) Salud",0,0,0,0,0,0]
[null,"b4) Recreación, Cultura y Otras Manifestaciones Sociales",0,0,0,0,0,0]
[null,"b5) Educación",0,0,0,0,0,0]
[null,"b6) Protección Social",0,0,0,0,0,0]
[null,"b7) Otros Asuntos Sociales",0,0,0,0,0,0]
[]
["C. Desarrollo Económico (C=c1+c2+c3+c4+c5+c6+c7+c8+c9)",null,{"$f":"+C30+C31+C32+C33+C34+C35+C36+C37+C38","v":0},{"$f":"+D30+D31+D32+D33+D34+D35+D36+D37+D38","v":0},0,0,0,0]
[null,"c1) Asuntos Económicos, Comerciales y Laborales en General",0,0,0,0,0,0]
[null,"c2) Agropecuaria, Silvicultura, Pesca y Caza",0,0,0,0,0,0]
[null,"c3) Combustibles y Energía",0,0,0,0,0,0]
[null,"c4) Minería, Manufacturas y Construcción",0,0,0,0,0,0]
[null,"c5) Transporte",0,0,0,0,0,0]
[null,"c6) Comunicaciones",0,0,0,0,0,0]
[null,"c7) Turismo",0,0,0,0,0,0]
[null,"c8) Ciencia, Tecnología e Innovación",0,0,0,0,0,0]
[null,"c9) Otras Industrias y Otros Asuntos Económicos",0,0,0,0,0,0]
[]
["D. Otras No Clasificadas en Funciones Anteriores (D=d1+d2+d3+d4)",null,{"$f":"+C41+C42+C43+C44","v":0},{"$f":"+D41+D42+D43+D44","v":0},0,0,0,0]
[null,"d1) Transacciones de la Deuda Publica / Costo Financiero de la Deuda",0,0,0,0,0,0]
[null,"d2) Transferencias, Participaciones y Aportaciones Entre Diferentes Niveles y Ordenes de Gobierno",0,0,0,0,0,0]
[null,"d3) Saneamiento del Sistema Financiero",0,0,0,0,0,0]
[null,"d4) Adeudos de Ejercicios Fiscales Anteriores",0,0,0,0,0,0]
[]
["II. Gasto Etiquetado (II=A+B+C+D)",null,{"$f":"+C47+C57+C66+C77","v":0},{"$f":"+D47+D57+D66+D77","v":0},0,0,0,0]
["A. Gobierno (A=a1+a2+a3+a4+a5+a6+a7+a8)",null,{"$f":"+C48+C49+C50+C51+C52+C53+C54+C55","v":0},{"$f":"+D48+D49+D50+D51+D52+D53+D54+D55","v":0},0,0,0,0]
[null,"a1) Legislación",0,0,0,0,0,0]
[null,"a2) Justicia",0,0,0,0,0,0]
[null,"a3) Coordinación de la Política de Gobierno",0,0,0,0,0,0]
[null,"a4) Relaciones Exteriores",0,0,0,0,0,0]
[null,"a5) Asuntos Financieros y Hacendarios",0,0,0,0,0,0]
[null,"a6) Seguridad Nacional",0,0,0,0,0,0]
[null,"a7) Asuntos de Orden Público y de Seguridad Interior",0,0,0,0,0,0]
[null,"a8) Otros Servicios Generales",0,0,0,0,0,0]
[]
["B. Desarrollo Social (B=b1+b2+b3+b4+b5+b6+b7)",null,{"$f":"+C58+C59+C60+C61+C62+C63+C64","v":0},{"$f":"+D58+D59+D60+D61+D62+D63+D64","v":0},0,0,0,0]
[null,"b1) Protección Ambiental",0,0,0,0,0,0]
[null,"b2) Vivienda y Servicios a la Comunidad",0,0,0,0,0,0]
[null,"b3) Salud",0,0,0,0,0,0]
[null,"b4) Recreación, Cultura y Otras Manifestaciones Sociales",0,0,0,0,0,0]
[null,"b5) Educación",0,0,0,0,0,0]
[null,"b6) Protección Social",0,0,0,0,0,0]
[null,"b7) Otros Asuntos Sociales",0,0,0,0,0,0]
[]
["C. Desarrollo Económico (C=c1+c2+c3+c4+c5+c6+c7+c8+c9)",null,{"$f":"+C67+C68+C69+C70+C71+C72+C73+C74+C75","v":0},{"$f":"+D67+D68+D69+D70+D71+D72+D73+D74+D75","v":0},0,0,0,0]
[null,"c1) Asuntos Económicos, Comerciales y Laborales en General",0,0,0,0,0,0]
[null,"c2) Agropecuaria, Silvicultura, Pesca y Caza",0,0,0,0,0,0]
[null,"c3) Combustibles y Energía",0,0,0,0,0,0]
[null,"c4) Minería, Manufacturas y Construcción",0,0,0,0,0,0]
[null,"c5) Transporte",0,0,0,0,0,0]
[null,"c6) Comunicaciones",0,0,0,0,0,0]
[null,"c7) Turismo",0,0,0,0,0,0]
[null,"c8) Ciencia, Tecnología e Innovación",0,0,0,0,0,0]
[null,"c9) Otras Industrias y Otros Asuntos Económicos",0,0,0,0,0,0]
[]
["D. Otras No Clasificadas en Funciones Anteriores (D=d1+d2+d3+d4)",null,{"$f":"+C78+C79+C80+C81","v":0},{"$f":"+D78+D79+D80+D81","v":0},0,0,0,0]
[null,"d1) Transacciones de la Deuda Publica / Costo Financiero de la Deuda",0,0,0,0,0,0]
[null,"d2) Transferencias, Participaciones y Aportaciones Entre Diferentes Niveles y Ordenes de Gobierno",0,0,0,0,0,0]
[null,"d3) Saneamiento del Sistema Financiero",0,0,0,0,0,0]
[null,"d4) Adeudos de Ejercicios Fiscales Anteriores",0,0,0,0,0,0]
[]
["III. Total de Egresos (III = I + II)",null,{"$f":"+C9+C46","v":2695000},{"$f":"+D9+D46","v":0},2695000,1664382,1664382,1030618]

{"sheet":"6D","index":8,"n_rows":31,"n_cols":7,"rows_kept":31,"cut":false,"hidden":false,"merged":[[5,0,6,0],[5,1,5,5],[5,6,6,6],[0,0,0,6],[1,0,1,6],[2,0,2,6],[3,0,3,6],[4,0,4,6]]}
["CONSEJO ESTATAL DE POBLACION"]
["Estado Analítico del Ejercicio del Presupuesto de Egresos Detallado - LDF"]
["Clasificación de Servicios Personales por Categoría"]
["Del 1 de enero al 30 de septiembre de 2017 (b)"]
["(PESOS)"]
["Concepto (c)","Egresos",null,null,null,null,"Subejercicio (e)"]
[null,"Aprobado (d)","Ampliaciones/ (Reducciones) ","Modificado ","Devengado ","Pagado"]
["I. Gasto No Etiquetado (I=A+B+C+D+E+F)",{"$f":"+B9+B10+B11+B14+B15+B18","v":1691000},{"$f":"+C9+C10+C11+C14+C15+C18","v":0},1691000,1040224,1040224,650776]
["A. Personal Administrativo y de Servicio Público",1691000,0,{"$f":"+B9+C9","v":1691000},1040224,1040224,{"$f":"SUM(D9-F9)","v":650776}]
["B. Magisterio",{"$f":"+B11+B12","v":0},{"$f":"+C11+C12","v":0},0,0,0,0]
["C. Servicios de Salud (C=c1+c2)",{"$f":"+B12+B13","v":0},0,0,0,0,0]
["c1) Personal Administrativo",{"$f":"+B13+B14","v":0},0,0,0,0,0]
["c2) Personal Médico, Paramédico y afín",{"$f":"+B14+B15","v":0},0,0,0,0,0]
["D. Seguridad Pública",{"$f":"+B15+B16","v":0},0,0,0,0,0]
["E. Gastos asociados a la implementación de nuevas leyes federales o reformas a las mismas (E = e1 + e2)",{"$f":"+B16+B17","v":0},0,0,0,0,0]
["e1) Nombre del Programa o Ley 1",{"$f":"+B17+B18","v":0},0,0,0,0,0]
["e2) Nombre del Programa o Ley 2",{"$f":"+B18+B19","v":0},0,0,0,0,0]
["F. Sentencias laborales definitivas",{"$f":"+B19+B20","v":0},0,0,0,0,0]
[]
["II. Gasto Etiquetado (II=A+B+C+D+E+F)",{"$f":"+B21+B22+B23+B26+B27+B30","v":0},{"$f":"+C21+C22+C23+C26+C27+C30","v":0},0,0,0,0]
["A. Personal Administrativo y de Servicio Público",0,0,0,0,0,0]
["B. Magisterio",0,0,0,0,0,0]
["C. Servicios de Salud (C=c1+c2)",0,0,0,0,0,0]
["c1) Personal Administrativo",0,0,0,0,0,0]
["c2) Personal Médico, Paramédico y afín",0,0,0,0,0,0]
["D. Seguridad Pública",0,0,0,0,0,0]
["E. Gastos asociados a la implementación de nuevas leyes federales o reformas a las mismas (E = e1 + e2)",0,0,0,0,0,0]
["e1) Nombre del Programa o Ley 1",0,0,0,0,0,0]
["e2) Nombre del Programa o Ley 2",0,0,0,0,0,0]
["F. Sentencias laborales definitivas",0,0,0,0,0,0]
["III. Total del Gasto en Servicios Personales (III = I + II)",{"$f":"+B20+B8","v":1691000},{"$f":"+C20+C8","v":0},1691000,1040224,1040224,650776]